[Event "Live Chess"]
[Site "Chess.com"]
[Date "2023.05.20"]
[Round "-"]
[White "AwesomeFredster"]
[Black "Nazarenko_vital"]
[Result "0-1"]
[WhiteElo "1579"]
[BlackElo "1575"]
[TimeControl "300"]
[EndTime "9:28:54 PDT"]
[Termination "Nazarenko_vital won by resignation"]

1. e4 {[%clk 0:04:59.5]} 1... d5 {[%clk 0:04:57.8]} 2. Nf3 {[%clk 0:04:57.9]}
2... dxe4 {[%clk 0:04:55.9]} 3. Ng5 {[%clk 0:04:57.1]} 3... Nf6 {[%clk
0:04:55.5]} 4. d3 {[%clk 0:04:54.6]} 4... Bg4 {[%clk 0:04:54.2]} 5. f3 {[%clk
0:04:45.6]} 5... exf3 {[%clk 0:04:52.4]} 6. Nxf3 {[%clk 0:04:44.9]} 6... e6
{[%clk 0:04:44.8]} 7. h3 {[%clk 0:04:43.1]} 7... Bh5 {[%clk 0:04:43.1]} 8. Nc3
{[%clk 0:04:27.6]} 8... c6 {[%clk 0:04:41.7]} 9. Be3 {[%clk 0:04:26.5]} 9... Qc7
{[%clk 0:04:38.8]} 10. Qd2 {[%clk 0:04:22.2]} 10... Bd6 {[%clk 0:04:28.6]} 11.
O-O-O {[%clk 0:04:19]} 11... Nbd7 {[%clk 0:04:23.2]} 12. g4 {[%clk 0:04:18.1]}
12... Bg6 {[%clk 0:04:21.5]} 13. Nh2 {[%clk 0:04:15.9]} 13... Bxh2 {[%clk
0:04:12.8]} 14. Rxh2 {[%clk 0:04:06]} 14... h6 {[%clk 0:04:02.9]} 15. Bf4 {[%clk
0:03:58.4]} 15... e5 {[%clk 0:03:56.5]} 16. Re1 {[%clk 0:03:55.6]} 16... O-O-O
{[%clk 0:03:44.8]} 17. Be3 {[%clk 0:03:41.9]} 17... a6 {[%clk 0:03:29.4]} 18.
Qf2 {[%clk 0:03:34.9]} 18... Qd6 {[%clk 0:03:07.8]} 19. Bg2 {[%clk 0:03:11.6]}
19... Rde8 {[%clk 0:02:29.1]} 20. Bf3 {[%clk 0:02:38.1]} 20... Rhg8 {[%clk
0:02:04.9]} 21. Qg3 {[%clk 0:02:27.1]} 21... Qc7 {[%clk 0:01:42.3]} 22. g5
{[%clk 0:01:57.3]} 22... hxg5 {[%clk 0:01:31.8]} 23. Bxg5 {[%clk 0:01:56.4]}
23... Nh5 {[%clk 0:01:25.5]} 24. Bxh5 {[%clk 0:01:30.5]} 24... Bxh5 {[%clk
0:01:21.1]} 25. Qh4 {[%clk 0:01:29.6]} 25... Rh8 {[%clk 0:01:17.7]} 26. d4
{[%clk 0:01:23.3]} 26... exd4 {[%clk 0:01:13.4]} 27. Rxe8+ {[%clk 0:01:20.8]}
27... Rxe8 {[%clk 0:01:08.7]} 28. Nd5 {[%clk 0:01:13.8]} 28... Qxh2 {[%clk
0:01:04.6]} 29. Nb6+ {[%clk 0:01:09]} 29... Nxb6 {[%clk 0:01:00.2]} 30. Qxh5
{[%clk 0:01:00.8]} 30... Re1+ {[%clk 0:00:54.4]} 0-1

[Event "Live Chess"]
[Site "Chess.com"]
[Date "2023.05.20"]
[Round "-"]
[White "toog"]
[Black "Tilbs_12"]
[Result "1-0"]
[WhiteElo "2635"]
[BlackElo "1608"]
[TimeControl "300"]
[EndTime "9:28:59 PDT"]
[Termination "toog won by resignation"]

1. e4 {[%clk 0:04:59.3]} 1... c6 {[%clk 0:04:57.4]} 2. d4 {[%clk 0:04:58]} 2...
d5 {[%clk 0:04:56.3]} 3. Nc3 {[%clk 0:04:54.3]} 3... dxe4 {[%clk 0:04:54.9]} 4.
Nxe4 {[%clk 0:04:54.2]} 4... Nf6 {[%clk 0:04:54.1]} 5. Nxf6+ {[%clk 0:04:53.5]}
5... exf6 {[%clk 0:04:53.9]} 6. c3 {[%clk 0:04:51.9]} 6... Bd6 {[%clk
0:04:53.4]} 7. Bd3 {[%clk 0:04:50.7]} 7... O-O {[%clk 0:04:52.1]} 8. Qc2 {[%clk
0:04:50.3]} 8... g6 {[%clk 0:04:49.5]} 9. Ne2 {[%clk 0:04:49.6]} 9... Re8 {[%clk
0:04:47.5]} 10. h4 {[%clk 0:04:48]} 10... f5 {[%clk 0:04:43.8]} 11. Bg5 {[%clk
0:04:45.9]} 11... Qc7 {[%clk 0:04:39.2]} 12. O-O-O {[%clk 0:04:44.4]} 12... Bf8
{[%clk 0:04:37.4]} 13. h5 {[%clk 0:04:42.9]} 13... Nd7 {[%clk 0:04:25.4]} 14.
hxg6 {[%clk 0:04:40.9]} 14... fxg6 {[%clk 0:04:24.6]} 15. Nf4 {[%clk 0:04:34.2]}
15... Nb6 {[%clk 0:04:20.6]} 16. Qb3+ {[%clk 0:04:27]} 16... Qf7 {[%clk
0:04:04.7]} 17. Qxf7+ {[%clk 0:04:25.1]} 17... Kxf7 {[%clk 0:04:03.7]} 18. Rxh7+
{[%clk 0:04:25]} 18... Kg8 {[%clk 0:04:00.3]} 19. Rdh1 {[%clk 0:04:23.4]} 19...
Bg7 {[%clk 0:03:55.2]} 20. Nxg6 {[%clk 0:04:19.2]} 20... Nd5 {[%clk 0:03:41.9]}
21. Ne5 {[%clk 0:04:18]} 21... Be6 {[%clk 0:03:26]} 22. R7h5 {[%clk 0:03:58.6]}
22... Nf6 {[%clk 0:03:05.8]} 23. Bxf6 {[%clk 0:03:53.9]} 23... Bxf6 {[%clk
0:03:04.6]} 24. Bxf5 {[%clk 0:03:53.4]} 24... Bxf5 {[%clk 0:03:03]} 25. Rxf5
{[%clk 0:03:53.3]} 25... Kg7 {[%clk 0:03:00]} 26. Rh3 {[%clk 0:03:50.3]} 26...
Rad8 {[%clk 0:02:55.1]} 27. Rg3+ {[%clk 0:03:48.8]} 1-0

[Event "Live Chess"]
[Site "Chess.com"]
[Date "2023.05.20"]
[Round "-"]
[White "f4nomore"]
[Black "dhanushkasri"]
[Result "1-0"]
[WhiteElo "1351"]
[BlackElo "470"]
[TimeControl "300"]
[EndTime "9:29:00 PDT"]
[Termination "f4nomore won on time"]

1. d4 {[%clk 0:04:58.3]} 1... d5 {[%clk 0:04:56.6]} 2. Bg5 {[%clk 0:04:56.9]}
2... f6 {[%clk 0:03:48.9]} 3. Bh4 {[%clk 0:04:54.1]} 3... Nh6 {[%clk 0:03:46.6]}
4. e3 {[%clk 0:04:51]} 4... Bg4 {[%clk 0:03:32]} 5. Be2 {[%clk 0:04:48.3]} 5...
Bxe2 {[%clk 0:03:26.8]} 6. Nxe2 {[%clk 0:04:44.9]} 6... g5 {[%clk 0:03:12.9]} 7.
Bg3 {[%clk 0:04:42.5]} 7... e5 {[%clk 0:03:03.7]} 8. dxe5 {[%clk 0:04:40]} 8...
fxe5 {[%clk 0:03:02]} 9. Bxe5 {[%clk 0:04:38.1]} 9... Bg7 {[%clk 0:02:57.5]} 10.
Bxg7 {[%clk 0:04:36.2]} 10... Rg8 {[%clk 0:02:48.9]} 11. Bxh6 {[%clk 0:04:34.7]}
11... Rg6 {[%clk 0:02:41.8]} 12. Bxg5 {[%clk 0:04:26.3]} 12... Rxg5 {[%clk
0:02:37.5]} 13. Ng3 {[%clk 0:04:15.2]} 13... Re5 {[%clk 0:02:12.4]} 14. O-O
{[%clk 0:03:56.7]} 14... Qd7 {[%clk 0:01:56.2]} 15. Nc3 {[%clk 0:03:49.3]} 15...
Nc6 {[%clk 0:01:51.6]} 16. Nb5 {[%clk 0:03:28.7]} 16... O-O-O {[%clk 0:01:44.9]}
17. Nd4 {[%clk 0:03:22.1]} 17... Nxd4 {[%clk 0:01:40.2]} 18. exd4 {[%clk
0:03:20.1]} 18... Rg5 {[%clk 0:01:07.5]} 19. f4 {[%clk 0:03:08.8]} 19... Rg6
{[%clk 0:00:55.2]} 20. f5 {[%clk 0:02:52.8]} 20... Rgg8 {[%clk 0:00:50.8]} 21.
Qf3 {[%clk 0:02:46.2]} 21... Rgf8 {[%clk 0:00:09.8]} 22. f6 {[%clk 0:02:33.6]}
22... Rf7 {[%clk 0:00:05.7]} 23. c3 {[%clk 0:02:27.3]} 23... Qc6 {[%clk
0:00:02.7]} 24. Nh5 {[%clk 0:02:19.3]} 24... Qb6 {[%clk 0:00:01.3]} 25. b3
{[%clk 0:02:15.9]} 25... Qa6 {[%clk 0:00:00.1]} 26. Qh3+ {[%clk 0:02:13]} 1-0

[Event "Live Chess"]
[Site "Chess.com"]
[Date "2023.05.20"]
[Round "-"]
[White "AyannaTang"]
[Black "JamesWallman"]
[Result "0-1"]
[WhiteElo "178"]
[BlackElo "798"]
[TimeControl "300"]
[EndTime "9:29:01 PDT"]
[Termination "JamesWallman won by checkmate"]

1. e4 {[%clk 0:04:58.5]} 1... e5 {[%clk 0:04:56.9]} 2. f4 {[%clk 0:04:55.3]}
2... d6 {[%clk 0:04:46.5]} 3. Nf3 {[%clk 0:04:49.9]} 3... exf4 {[%clk
0:04:42.4]} 4. d4 {[%clk 0:04:45.6]} 4... g5 {[%clk 0:04:37.8]} 5. Bc4 {[%clk
0:04:40.1]} 5... Nc6 {[%clk 0:04:28.4]} 6. d5 {[%clk 0:04:29.4]} 6... Ne5 {[%clk
0:04:18.2]} 7. Nxe5 {[%clk 0:04:26.3]} 7... dxe5 {[%clk 0:04:14.2]} 8. h4 {[%clk
0:04:10.6]} 8... gxh4 {[%clk 0:04:06.6]} 9. Bxf4 {[%clk 0:04:08.3]} 9... exf4
{[%clk 0:04:03.5]} 10. Qd4 {[%clk 0:04:07]} 10... f6 {[%clk 0:03:32.8]} 11. e5
{[%clk 0:04:02.1]} 11... Qe7 {[%clk 0:03:20]} 12. d6 {[%clk 0:03:56.6]} 12...
Qxe5+ {[%clk 0:03:16.2]} 13. Qxe5+ {[%clk 0:03:50.9]} 13... fxe5 {[%clk
0:03:13.9]} 14. O-O {[%clk 0:03:48]} 14... cxd6 {[%clk 0:03:11]} 15. Bxg8 {[%clk
0:03:45.5]} 15... Rxg8 {[%clk 0:03:08.2]} 16. Nc3 {[%clk 0:03:43.5]} 16... Be6
{[%clk 0:02:56.4]} 17. Ne4 {[%clk 0:03:39.4]} 17... O-O-O {[%clk 0:02:42.3]} 18.
Nf6 {[%clk 0:03:32.2]} 18... Rg7 {[%clk 0:02:28.8]} 19. Nh5 {[%clk 0:03:26.8]}
19... Rg5 {[%clk 0:02:22.4]} 20. Nf6 {[%clk 0:03:05.4]} 20... h6 {[%clk
0:02:10.1]} 21. Nh7 {[%clk 0:03:01]} 21... Rg6 {[%clk 0:02:02]} 22. Rad1 {[%clk
0:02:45.2]} 22... Rg7 {[%clk 0:01:36.4]} 23. Nf6 {[%clk 0:02:41.5]} 23... Be7
{[%clk 0:01:24.9]} 24. Nh5 {[%clk 0:02:35.5]} 24... Rg5 {[%clk 0:01:18.6]} 25.
Nxf4 {[%clk 0:02:11.4]} 25... exf4 {[%clk 0:01:14.4]} 26. Rxf4 {[%clk
0:02:09.8]} 26... Rf5 {[%clk 0:01:02.3]} 27. Rc4+ {[%clk 0:02:03.8]} 27... Bxc4
{[%clk 0:00:56.1]} 28. g4 {[%clk 0:01:58.3]} 28... Rg5 {[%clk 0:00:50.9]} 29.
Rd4 {[%clk 0:01:48.1]} 29... Bb5 {[%clk 0:00:43]} 30. c4 {[%clk 0:01:42.9]}
30... Bc6 {[%clk 0:00:41.4]} 31. Kf2 {[%clk 0:01:37.2]} 31... Bd7 {[%clk
0:00:39]} 32. Kf3 {[%clk 0:01:34.7]} 32... Rf8+ {[%clk 0:00:36.1]} 33. Kg2
{[%clk 0:01:31.7]} 33... Rxg4+ {[%clk 0:00:31.8]} 34. Kh2 {[%clk 0:01:29.1]}
34... Rxd4 {[%clk 0:00:28.5]} 35. b3 {[%clk 0:01:25.6]} 35... a6 {[%clk
0:00:25.1]} 36. Kg2 {[%clk 0:01:22.9]} 36... Bg5 {[%clk 0:00:21.3]} 37. Kh1
{[%clk 0:01:20.9]} 37... Rd1+ {[%clk 0:00:18.5]} 38. Kh2 {[%clk 0:01:19.5]}
38... Rf2# {[%clk 0:00:16]} 0-1

[Event "Live Chess"]
[Site "Chess.com"]
[Date "2023.05.20"]
[Round "-"]
[White "TDCMF"]
[Black "CheckString"]
[Result "0-1"]
[WhiteElo "340"]
[BlackElo "1352"]
[TimeControl "300"]
[EndTime "9:29:09 PDT"]
[Termination "CheckString won on time"]

1. e4 {[%clk 0:04:57.4]} 1... c6 {[%clk 0:04:59.2]} 2. d4 {[%clk 0:04:55.7]}
2... d5 {[%clk 0:04:58.6]} 3. e5 {[%clk 0:04:54.3]} 3... c5 {[%clk 0:04:58.1]}
4. Nf3 {[%clk 0:04:50.9]} 4... cxd4 {[%clk 0:04:56.5]} 5. Nxd4 {[%clk
0:04:49.3]} 5... Nc6 {[%clk 0:04:56.1]} 6. Nc3 {[%clk 0:04:42.8]} 6... e6 {[%clk
0:04:39.8]} 7. Bf4 {[%clk 0:04:37.5]} 7... Bc5 {[%clk 0:04:33.7]} 8. Nce2 {[%clk
0:04:12.4]} 8... Qb6 {[%clk 0:04:21]} 9. Be3 {[%clk 0:04:04]} 9... Nxd4 {[%clk
0:03:59.4]} 10. Bxd4 {[%clk 0:03:56.3]} 10... Ne7 {[%clk 0:03:55.5]} 11. g4
{[%clk 0:03:44.4]} 11... O-O {[%clk 0:03:51.7]} 12. Bg2 {[%clk 0:03:33.7]} 12...
Ng6 {[%clk 0:03:39.4]} 13. O-O {[%clk 0:03:28]} 13... Bxd4 {[%clk 0:03:34.1]}
14. Nxd4 {[%clk 0:03:24.9]} 14... Nxe5 {[%clk 0:03:33.6]} 15. Qd2 {[%clk
0:02:57.9]} 15... Nxg4 {[%clk 0:03:21.9]} 16. Rae1 {[%clk 0:02:38.5]} 16... Bd7
{[%clk 0:03:16.9]} 17. Re2 {[%clk 0:02:21.6]} 17... Bb5 {[%clk 0:03:03.4]} 18.
Nxb5 {[%clk 0:01:47.2]} 18... Qxb5 {[%clk 0:03:03.3]} 19. h3 {[%clk 0:01:33.9]}
19... Nf6 {[%clk 0:03:01]} 20. Rfe1 {[%clk 0:01:17.6]} 20... Rac8 {[%clk
0:02:52.5]} 21. Re3 {[%clk 0:00:50.2]} 21... Qxb2 {[%clk 0:02:44.8]} 22. Rg3
{[%clk 0:00:45.8]} 22... Nh5 {[%clk 0:02:17.4]} 23. Rg4 {[%clk 0:00:32.5]} 23...
g6 {[%clk 0:02:06.5]} 24. Re3 {[%clk 0:00:19.5]} 24... Qxc2 {[%clk 0:01:58.9]}
25. Qd4 {[%clk 0:00:12]} 25... Rc4 {[%clk 0:01:42.6]} 26. Qe5 {[%clk 0:00:07]}
26... Rxg4 {[%clk 0:01:38.8]} 27. hxg4 {[%clk 0:00:05.8]} 27... Ng7 {[%clk
0:01:36.3]} 28. Rh3 {[%clk 0:00:01.4]} 28... Qd1+ {[%clk 0:01:31.3]} 0-1

[Event "Live Chess"]
[Site "Chess.com"]
[Date "2023.05.20"]
[Round "-"]
[White "OBrightwell100"]
[Black "Hacker_2009"]
[Result "0-1"]
[WhiteElo "1329"]
[BlackElo "1929"]
[TimeControl "300"]
[EndTime "9:29:10 PDT"]
[Termination "Hacker_2009 won by resignation"]

1. e4 {[%clk 0:04:58.5]} 1... c5 {[%clk 0:04:57.7]} 2. Nf3 {[%clk 0:04:56.6]}
2... d6 {[%clk 0:04:53.9]} 3. c3 {[%clk 0:04:55.6]} 3... Nf6 {[%clk 0:04:50.1]}
4. e5 {[%clk 0:04:48.7]} 4... dxe5 {[%clk 0:04:48.3]} 5. Nxe5 {[%clk 0:04:47.1]}
5... Qc7 {[%clk 0:04:47.9]} 6. d4 {[%clk 0:04:38.7]} 6... cxd4 {[%clk
0:04:46.5]} 7. Qxd4 {[%clk 0:04:35]} 7... Nc6 {[%clk 0:04:43.8]} 8. Qe3 {[%clk
0:04:22.7]} 8... Qxe5 {[%clk 0:04:42.2]} 9. Qxe5 {[%clk 0:04:20.5]} 9... Nxe5
{[%clk 0:04:42.1]} 10. Bf4 {[%clk 0:04:18.9]} 10... Ng6 {[%clk 0:04:39.1]} 11.
Bg3 {[%clk 0:04:16.2]} 11... Bf5 {[%clk 0:04:34.8]} 12. Nd2 {[%clk 0:04:13.9]}
12... e6 {[%clk 0:04:32.6]} 13. Nc4 {[%clk 0:04:13.1]} 13... Bc5 {[%clk
0:04:29.9]} 14. b4 {[%clk 0:04:09.6]} 14... Bb6 {[%clk 0:04:28.1]} 15. a4 {[%clk
0:04:07.2]} 15... O-O {[%clk 0:04:26.8]} 16. a5 {[%clk 0:04:06.3]} 16... Bd8
{[%clk 0:04:24.7]} 17. Nd6 {[%clk 0:04:03]} 17... Be7 {[%clk 0:04:23.3]} 18.
Nxb7 {[%clk 0:03:59.7]} 18... Rac8 {[%clk 0:04:21.4]} 19. Be5 {[%clk 0:03:52.1]}
19... Nxe5 {[%clk 0:04:17.9]} 0-1

[Event "Live Chess"]
[Site "Chess.com"]
[Date "2023.05.20"]
[Round "-"]
[White "luckywookie"]
[Black "CocheseUK"]
[Result "0-1"]
[WhiteElo "717"]
[BlackElo "1180"]
[TimeControl "300"]
[EndTime "9:29:14 PDT"]
[Termination "CocheseUK won on time"]

1. e4 {[%clk 0:04:58]} 1... e5 {[%clk 0:04:56.6]} 2. Nf3 {[%clk 0:04:55.7]} 2...
Nc6 {[%clk 0:04:53.1]} 3. c3 {[%clk 0:04:53.1]} 3... Nf6 {[%clk 0:04:47.7]} 4.
d3 {[%clk 0:04:48.9]} 4... Bc5 {[%clk 0:04:39.1]} 5. Bg5 {[%clk 0:04:45.7]} 5...
O-O {[%clk 0:04:34.4]} 6. d4 {[%clk 0:04:44.2]} 6... exd4 {[%clk 0:04:28.7]} 7.
cxd4 {[%clk 0:04:42.6]} 7... Bb4+ {[%clk 0:04:16.3]} 8. Nc3 {[%clk 0:04:39.8]}
8... Be7 {[%clk 0:04:02.6]} 9. d5 {[%clk 0:04:06.7]} 9... Nb4 {[%clk 0:03:47.8]}
10. Bc4 {[%clk 0:03:49.7]} 10... d6 {[%clk 0:03:41.9]} 11. O-O {[%clk 0:03:37]}
11... h6 {[%clk 0:03:39.1]} 12. Be3 {[%clk 0:03:08.2]} 12... c6 {[%clk
0:03:21.8]} 13. a3 {[%clk 0:02:37.9]} 13... b5 {[%clk 0:03:17.6]} 14. Bb3 {[%clk
0:02:24.6]} 14... Na6 {[%clk 0:03:04.9]} 15. Rc1 {[%clk 0:02:16.3]} 15... c5
{[%clk 0:02:56.1]} 16. Bc2 {[%clk 0:02:09.7]} 16... Nc7 {[%clk 0:02:42.5]} 17.
Qe2 {[%clk 0:01:55.3]} 17... a6 {[%clk 0:02:18]} 18. h3 {[%clk 0:01:35]} 18...
b4 {[%clk 0:02:16.4]} 19. Na4 {[%clk 0:01:26.5]} 19... Nxe4 {[%clk 0:02:04.4]}
20. Bxe4 {[%clk 0:01:04.2]} 20... Nb5 {[%clk 0:01:44.2]} 21. axb4 {[%clk
0:00:38.6]} 21... cxb4 {[%clk 0:01:37.2]} 22. Bb6 {[%clk 0:00:31.4]} 22... Qd7
{[%clk 0:01:18.9]} 23. Rc7 {[%clk 0:00:23]} 23... Nxc7 {[%clk 0:01:10.8]} 24.
Bxc7 {[%clk 0:00:16.2]} 24... Qxc7 {[%clk 0:01:08.4]} 25. Nd4 {[%clk 0:00:09.9]}
25... Bd7 {[%clk 0:00:58.4]} 0-1

[Event "Live Chess"]
[Site "Chess.com"]
[Date "2023.05.20"]
[Round "-"]
[White "Ayush_prahlad_Gupta"]
[Black "amazinggoalkeeper"]
[Result "1-0"]
[WhiteElo "1800"]
[BlackElo "499"]
[TimeControl "300"]
[EndTime "9:29:25 PDT"]
[Termination "Ayush_prahlad_Gupta won by resignation"]

1. e4 {[%clk 0:04:58.5]} 1... e5 {[%clk 0:04:59.5]} 2. Nc3 {[%clk 0:04:58.4]}
2... Nc6 {[%clk 0:04:57.2]} 3. Bc4 {[%clk 0:04:57.7]} 3... Nf6 {[%clk
0:04:56.5]} 4. d3 {[%clk 0:04:56.5]} 4... Qe7 {[%clk 0:04:55.4]} 5. Bg5 {[%clk
0:04:55.7]} 5... h6 {[%clk 0:04:52.1]} 6. Bh4 {[%clk 0:04:54.6]} 6... g5 {[%clk
0:04:50.8]} 7. Bg3 {[%clk 0:04:53.8]} 7... Nd4 {[%clk 0:04:48.2]} 8. Nf3 {[%clk
0:04:51.3]} 8... Nxf3+ {[%clk 0:04:44.7]} 9. Qxf3 {[%clk 0:04:51.2]} 9... Bg7
{[%clk 0:04:41]} 10. h4 {[%clk 0:04:50.3]} 10... g4 {[%clk 0:04:38.4]} 11. Qe2
{[%clk 0:04:49.2]} 11... d6 {[%clk 0:04:32.9]} 12. h5 {[%clk 0:04:48.5]} 12...
O-O {[%clk 0:04:25.1]} 13. Bh4 {[%clk 0:04:47.1]} 13... c6 {[%clk 0:04:18.3]}
14. f4 {[%clk 0:04:44.1]} 14... exf4 {[%clk 0:04:15.5]} 15. O-O-O {[%clk
0:04:40.9]} 15... Qe6 {[%clk 0:04:04.8]} 16. Bxe6 {[%clk 0:04:39.1]} 16... Bxe6
{[%clk 0:04:02.4]} 17. Bxf6 {[%clk 0:04:37.9]} 17... Bxf6 {[%clk 0:04:00.9]} 18.
Rdf1 {[%clk 0:04:34.5]} 18... Bxa2 {[%clk 0:03:56.7]} 19. Nxa2 {[%clk
0:04:29.2]} 19... Bxb2+ {[%clk 0:03:54.1]} 20. Kxb2 {[%clk 0:04:27.4]} 1-0

[Event "Live Chess"]
[Site "Chess.com"]
[Date "2023.05.20"]
[Round "-"]
[White "HD_IN4k"]
[Black "grillage"]
[Result "0-1"]
[WhiteElo "297"]
[BlackElo "1841"]
[TimeControl "300"]
[EndTime "9:29:26 PDT"]
[Termination "grillage won by resignation"]

1. d4 {[%clk 0:04:54.8]} 1... Nf6 {[%clk 0:04:58]} 2. c4 {[%clk 0:04:53.6]} 2...
e6 {[%clk 0:04:57.3]} 3. f3 {[%clk 0:04:49.6]} 3... Bb4+ {[%clk 0:04:53.5]} 4.
Bd2 {[%clk 0:04:46.6]} 4... Bxd2+ {[%clk 0:04:52.6]} 5. Nxd2 {[%clk 0:04:46.1]}
5... d6 {[%clk 0:04:50.8]} 6. e4 {[%clk 0:04:45.7]} 6... Nbd7 {[%clk 0:04:49.6]}
7. e5 {[%clk 0:04:38.6]} 7... dxe5 {[%clk 0:04:43.6]} 8. dxe5 {[%clk 0:04:36]}
8... Nxe5 {[%clk 0:04:40]} 9. f4 {[%clk 0:04:32.1]} 9... Nd3+ {[%clk 0:04:35.1]}
10. Bxd3 {[%clk 0:04:30.6]} 10... Qxd3 {[%clk 0:04:34.1]} 11. Qf3 {[%clk
0:04:15.5]} 11... Qxf3 {[%clk 0:04:21.6]} 12. Ngxf3 {[%clk 0:04:11.8]} 12... O-O
{[%clk 0:04:18.7]} 13. O-O-O {[%clk 0:04:11.1]} 13... Bd7 {[%clk 0:04:14.3]} 14.
Ne4 {[%clk 0:03:56.8]} 14... Bc6 {[%clk 0:03:58.3]} 15. Nxf6+ {[%clk 0:03:54.7]}
15... gxf6 {[%clk 0:03:58.2]} 16. h4 {[%clk 0:03:42.1]} 16... Rfd8 {[%clk
0:03:54.5]} 17. Rxd8+ {[%clk 0:03:37.9]} 17... Rxd8 {[%clk 0:03:52.7]} 18. f5
{[%clk 0:03:33]} 18... Bxf3 {[%clk 0:03:51.2]} 19. gxf3 {[%clk 0:03:31.4]} 19...
Rd4 {[%clk 0:03:49.9]} 20. Rg1+ {[%clk 0:03:28.7]} 20... Kf8 {[%clk 0:03:48.1]}
21. h5 {[%clk 0:03:14.9]} 21... Rxc4+ {[%clk 0:03:46.6]} 22. Kb1 {[%clk
0:03:14]} 22... Rh4 {[%clk 0:03:43]} 23. fxe6 {[%clk 0:03:08.7]} 23... fxe6
{[%clk 0:03:41.6]} 24. Rd1 {[%clk 0:02:58.5]} 24... Ke7 {[%clk 0:03:40.1]} 25.
Rg1 {[%clk 0:02:52.9]} 25... Rxh5 {[%clk 0:03:36]} 26. Rg7+ {[%clk 0:02:50.1]}
26... Kd6 {[%clk 0:03:35.5]} 27. f4 {[%clk 0:02:41.8]} 27... Rh2 {[%clk
0:03:32]} 28. f5 {[%clk 0:02:34.5]} 28... exf5 {[%clk 0:03:31.1]} 29. Rf7 {[%clk
0:02:31.8]} 29... Rh6 {[%clk 0:03:17.4]} 30. Rf8 {[%clk 0:02:28.5]} 30... f4
{[%clk 0:03:15.9]} 31. Rd8+ {[%clk 0:02:27.3]} 31... Kc6 {[%clk 0:03:10.5]} 32.
Rd2 {[%clk 0:02:20.2]} 32... f3 {[%clk 0:03:08.9]} 33. Rf2 {[%clk 0:02:13.9]}
33... Rh3 {[%clk 0:03:07.1]} 34. b3 {[%clk 0:02:11.3]} 34... Rg3 {[%clk
0:03:03.6]} 35. a4 {[%clk 0:02:09.1]} 35... h5 {[%clk 0:03:01.6]} 36. Kb2 {[%clk
0:02:04.2]} 36... Rg2 {[%clk 0:03:00.2]} 37. Rxg2 {[%clk 0:01:49]} 37... fxg2
{[%clk 0:02:59]} 38. b4 {[%clk 0:01:46.3]} 38... g1=Q {[%clk 0:02:57]} 39. Kb3
{[%clk 0:01:46.2]} 39... Qe3+ {[%clk 0:02:55.4]} 40. Kc4 {[%clk 0:01:44.9]}
40... Qe4+ {[%clk 0:02:53.1]} 41. Kb3 {[%clk 0:01:43.3]} 41... Qd3+ {[%clk
0:02:52.1]} 42. Kb2 {[%clk 0:01:39.5]} 42... h4 {[%clk 0:02:51.5]} 43. b5+
{[%clk 0:01:35.8]} 43... Kc5 {[%clk 0:02:50.8]} 44. a5 {[%clk 0:01:32.5]} 44...
h3 {[%clk 0:02:48]} 45. b6 {[%clk 0:01:31.4]} 45... cxb6 {[%clk 0:02:47]} 46.
axb6 {[%clk 0:01:29.9]} 46... axb6 {[%clk 0:02:46.1]} 47. Kc1 {[%clk 0:01:27.6]}
47... h2 {[%clk 0:02:44]} 0-1

[Event "Live Chess"]
[Site "Chess.com"]
[Date "2023.05.20"]
[Round "-"]
[White "HoarseyHorsey"]
[Black "KeithArkell"]
[Result "0-1"]
[WhiteElo "1387"]
[BlackElo "2609"]
[TimeControl "300"]
[EndTime "9:29:26 PDT"]
[Termination "KeithArkell won by resignation"]

1. d4 {[%clk 0:04:58.5]} 1... e6 {[%clk 0:04:58.2]} 2. c4 {[%clk 0:04:57.5]}
2... Bb4+ {[%clk 0:04:57.1]} 3. Nc3 {[%clk 0:04:56.1]} 3... c5 {[%clk
0:04:55.4]} 4. e3 {[%clk 0:04:51]} 4... Bxc3+ {[%clk 0:04:53.3]} 5. bxc3 {[%clk
0:04:49.7]} 5... f5 {[%clk 0:04:53.1]} 6. Nf3 {[%clk 0:04:48.3]} 6... Nf6 {[%clk
0:04:52.2]} 7. Bd3 {[%clk 0:04:44.9]} 7... d6 {[%clk 0:04:50.7]} 8. O-O {[%clk
0:04:43.5]} 8... Nc6 {[%clk 0:04:48.9]} 9. Bd2 {[%clk 0:04:25.4]} 9... e5 {[%clk
0:04:47.8]} 10. dxe5 {[%clk 0:04:13.9]} 10... dxe5 {[%clk 0:04:45.4]} 11. Bc2
{[%clk 0:04:06.7]} 11... e4 {[%clk 0:04:39.7]} 12. Ne1 {[%clk 0:03:55.6]} 12...
O-O {[%clk 0:04:34.7]} 13. f3 {[%clk 0:03:53.6]} 13... Be6 {[%clk 0:04:33]} 14.
fxe4 {[%clk 0:03:49.4]} 14... Nxe4 {[%clk 0:04:31.6]} 15. Bxe4 {[%clk
0:03:47.1]} 15... fxe4 {[%clk 0:04:30.8]} 16. Qe2 {[%clk 0:03:44.3]} 16... Rxf1+
{[%clk 0:04:28.3]} 17. Kxf1 {[%clk 0:03:42.6]} 17... Ne5 {[%clk 0:04:26.6]} 18.
Nc2 {[%clk 0:03:40.7]} 18... Bxc4 {[%clk 0:04:25.6]} 0-1

[Event "Live Chess"]
[Site "Chess.com"]
[Date "2023.05.20"]
[Round "-"]
[White "Driftboard"]
[Black "DorothyDawn"]
[Result "1/2-1/2"]
[WhiteElo "760"]
[BlackElo "467"]
[TimeControl "300"]
[EndTime "9:29:35 PDT"]
[Termination "Game drawn by agreement"]

1. e4 {[%clk 0:04:57.6]} 1... c5 {[%clk 0:04:57.7]} 2. Nf3 {[%clk 0:04:55.5]}
2... Nc6 {[%clk 0:04:56.5]} 3. Nc3 {[%clk 0:04:54.7]} 3... d6 {[%clk 0:04:50.2]}
4. Bc4 {[%clk 0:04:53.8]} 4... Nf6 {[%clk 0:04:48.1]} 5. O-O {[%clk 0:04:51.2]}
5... g5 {[%clk 0:04:46.8]} 6. d3 {[%clk 0:04:49.4]} 6... h6 {[%clk 0:04:41.1]}
7. h3 {[%clk 0:04:44.1]} 7... Bg7 {[%clk 0:04:36.5]} 8. Be3 {[%clk 0:04:38.8]}
8... b6 {[%clk 0:04:32.3]} 9. Bd5 {[%clk 0:04:36.2]} 9... Bb7 {[%clk 0:04:27.1]}
10. Bxc6+ {[%clk 0:04:33.1]} 10... Bxc6 {[%clk 0:04:25.8]} 11. a3 {[%clk
0:04:29.5]} 11... O-O {[%clk 0:04:11.9]} 12. b4 {[%clk 0:04:27.2]} 12... cxb4
{[%clk 0:04:00.6]} 13. axb4 {[%clk 0:04:25.4]} 13... Qd7 {[%clk 0:03:55.5]} 14.
Nd5 {[%clk 0:04:14.5]} 14... Bxd5 {[%clk 0:03:48.6]} 15. exd5 {[%clk 0:04:13]}
15... Qb5 {[%clk 0:03:44.1]} 16. Rb1 {[%clk 0:04:08.7]} 16... Qxd5 {[%clk
0:03:40.4]} 17. c4 {[%clk 0:04:06.3]} 17... Qe6 {[%clk 0:03:22.6]} 18. Nd4
{[%clk 0:04:00]} 18... Qe5 {[%clk 0:03:13.6]} 19. Nc6 {[%clk 0:03:54.9]} 19...
Qc3 {[%clk 0:02:51.6]} 20. Nxe7+ {[%clk 0:03:46.4]} 20... Kh7 {[%clk 0:02:46.6]}
21. Nc6 {[%clk 0:03:36.6]} 21... a5 {[%clk 0:02:43.5]} 22. bxa5 {[%clk 0:03:34]}
22... bxa5 {[%clk 0:02:40.4]} 23. Ra1 {[%clk 0:03:29.1]} 23... a4 {[%clk
0:02:36.8]} 24. Rxa4 {[%clk 0:03:15.7]} 24... Rxa4 {[%clk 0:02:31]} 25. Qxa4
{[%clk 0:03:12.7]} 25... Qxd3 {[%clk 0:02:20.1]} 26. Rd1 {[%clk 0:03:07]} 26...
Qf5 {[%clk 0:02:00.6]} 27. Nd4 {[%clk 0:02:43.8]} 27... Qe4 {[%clk 0:01:54.5]}
28. Re1 {[%clk 0:02:27.5]} 28... Nd7 {[%clk 0:01:45]} 29. f3 {[%clk 0:02:16.2]}
29... Qd3 {[%clk 0:01:27.7]} 30. Qb3 {[%clk 0:02:01]} 30... Nc5 {[%clk
0:01:10.8]} 31. Qxd3+ {[%clk 0:01:51.8]} 31... Nxd3 {[%clk 0:01:04.2]} 32. Rd1
{[%clk 0:01:49.3]} 32... Ne5 {[%clk 0:00:56.5]} 33. Rc1 {[%clk 0:01:35.2]} 33...
Re8 {[%clk 0:00:54.6]} 34. Nf5 {[%clk 0:01:31.1]} 1/2-1/2